Cogmind - Beta 14 @@@ ROGUE MODE // 2024.09.04 @ 02:38:00 Player: celerysam Result: Destroyed by P-70 Sage with High-powered Shock Rifle Performance ------------- Evolutions (5) 2500 Regions Visited (11) 2200 Robots Destroyed (67) 335 Value Destroyed (2257) 2257 Prototype IDs (7) 140 Alien Tech Used (0) 0 Bonus (1625) 1625 TOTAL SCORE: 9057 Bonus ------- High Alert Combat Kills 28 Follower Combat Kills 97 Entered DSFs 500 Met Warlord at Base 500 MAIN.C Attacked Warlord 500 Cogmind --------- Core Integrity 0/1000 Matter 290/300 Energy 39/100 System Corruption 2% Temperature Cool (0) Movement Core (100) Ox1 Location -4/Proximity Caves Parts ------- > --- POWER (2) -------- (None) > --- PROPULSION (6) --- (None) > --- UTILITY (6) ------ 0b10 Decoder Chip [Looter] Improved Power Shielding > --- WEAPON (3) ------- Makeshift Hammer > --- INVENTORY (5) ---- Antigrav System Precision Energy Filter Improved Datajack Segregator Lance Peak State ------------ > --- POWER ------------ Neutrino Core > --- PROPULSION ------- VTOL Module Improved VTOL Module Improved Cesium-ion Thruster Makeshift Flight Unit Nuclear Pulse Thruster Cooled Cesium-ion Thruster > --- UTILITY ---------- Compact Battery Compact Battery Advanced Visual Processing Unit Improved Target Analyzer Medium Reflective Plating Improved System Shield > --- WEAPON ----------- Wave Gun Gauss Cannon Power Sword > --- INVENTORY -------- Antigrav System Precision Energy Filter Improved Transmission Jammer Improved Datajack Dirty Bomb Trap [Rating: 72] Favorites ----------- Power Light Nuclear Core Engine Ion Engine Power Core Light Nuclear Core Propulsion Light Treads Treads Light Treads Leg Carbon-fiber Leg Wheel Wheel Hover Unit Aerolev Unit Flight Unit Improved VTOL Module Utility Advanced Visual Processing Unit Device Structural Scanner Storage Small Storage Unit Processor Advanced Visual Processing Unit Hackware Improved System Shield Protection Improved Light Armor Plating Weapon Power Sword Energy Gun Tesla Rifle Energy Cannon Advanced Beam Cannon Ballistic Gun Assault Rifle Ballistic Cannon Light Cannon Launcher Mini Grenade Launcher Impact Weapon Heavy Flail Slashing Weapon Power Sword Special Melee Weapon Improved Datajack Build | -11 -10 -9 -8 -7 -7 -6 -5 -5 -5 -5 -4 ------- Run | Yrd Mat Mat Mat Fac DSF Fac Fac Upp Upp War Pro Slots Evolved 10 | . . 2 2 2 . 2 2 . . . . Power 1 | . . . . 1 . . . . . . . Propulsion 4 | . . 2 . 1 . . 1 . . . . Utility 4 | . . . 2 . . 1 1 . . . . Weapon 1 | . . . . . . 1 . . . . . Parts Attached 124 | 6 6 12 30 10 5 11 5 9 16 9 5 Power 21 | 1 2 2 5 1 . 2 1 1 4 2 . Engine 12 | 1 2 1 4 1 . 1 . 1 . 1 . Core 9 | . . 1 1 . . 1 1 . 4 1 . Reactor . | . . . . . . . . . . . . Propulsion 39 | 2 2 6 9 5 2 4 1 2 4 2 . Treads 14 | . 2 5 4 3 . . . . . . . Leg 4 | . . 1 2 . . . . 1 . . . Wheel 3 | 2 . . . . . . . 1 . . . Hover 3 | . . . 3 . . . . . . . . Flight 15 | . . . . 2 2 4 1 . 4 2 . Utility 26 | 1 1 . 8 1 2 2 1 3 5 . 2 Device 9 | . 1 . 2 . . 1 1 2 1 . 1 Storage 4 | 1 . . . . . 1 . . 2 . . Processor 5 | . . . 3 . . . . 1 1 . . Hackware 2 | . . . . . 2 . . . . . . Protection 6 | . . . 3 1 . . . . 1 . 1 Artifact . | . . . . . . . . . . . . Weapon 38 | 2 1 4 8 3 1 3 2 3 3 5 3 Energy Gun 9 | . . . 2 . . 1 . 2 2 1 1 Energy Cannon 2 | . . . 1 . . . 1 . . . . Ballistic Gun 7 | 2 . 2 1 1 1 . . . . . . Ballistic Cannon 3 | . 1 . . . . 1 . . 1 . . Launcher 4 | . . 1 2 1 . . . . . . . Special Weapon . | . . . . . . . . . . . . Impact Weapon 5 | . . 1 2 1 . . . . . . 1 Slashing Weapon 5 | . . . . . . . 1 . . 3 1 Piercing Weapon . | . . . . . . . . . . . . Special Melee Weapon 3 | . . . . . . 1 . 1 . 1 . Unidentified Prototypes 7 | . . . 2 2 . 1 1 . . 1 . Parts Lost 59 | . 1 4 13 . 5 5 1 4 11 1 14 Power 8 | . . 1 1 . . . 1 2 1 . 2 Propulsion 23 | . 1 3 6 . 2 1 . . 4 1 5 Utility 17 | . . . 3 . 2 3 . 1 3 . 5 Weapon 11 | . . . 3 . 1 1 . 1 3 . 2 Highest Loss Streak 14 | . 1 4 5 . 5 3 1 3 8 1 14 To Critical Strikes 1 | . . . . . 1 . . . . . . Average Slot Usage (%) 79 | . 94 96 88 98 81 71 29 64 70 66 62 Engine 4 | . 14 7 2 6 2 2 2 . . 4 2 Core 3 | . . 2 4 7 7 5 . 2 3 1 2 Treads 11 | . 14 32 19 13 8 2 . . . . . Leg 3 | . . 8 4 . . . . 4 3 . . Wheel 2 | . 12 . . . . . . 4 1 . . Hover 3 | . . . 4 23 16 7 . . . . . Flight 8 | . . . . . 9 19 11 17 23 18 17 Device 6 | . 9 11 9 7 4 . . 6 1 5 9 Storage 5 | . 14 11 9 . . 2 . . 2 5 2 Processor 8 | . . . 13 15 8 6 5 7 11 17 11 Hackware 2 | . . . . . 6 10 5 5 5 5 4 Protection 1 | . . . 2 6 7 3 . . 1 . . Energy Gun 2 | . . . 2 . . 1 . 4 6 . . Ballistic Gun 5 | . 18 11 6 1 1 4 . . . . . Ballistic Cannon 1 | . 9 2 . . . . . . . . . Launcher 1 | . . 2 1 7 4 . . . . . . Impact Weapon 2 | . . 6 5 5 1 . . . . . . Slashing Weapon 1 | . . . . . . . . 5 4 4 6 Peak Build Rating 72 | 6 8 15 37 41 41 53 40 54 72 69 68 Average Rating 31 | 4 7 11 24 39 35 40 22 47 53 53 47 On Entrance 32 | . 6 8 15 36 40 41 21 38 54 61 68 Naked Turns . | . . . . . . . . . . . . Heaviest Build 33 | 14 16 18 24 23 21 23 17 17 33 27 27 Greatest Support 83 | 26 40 83 83 24 24 25 17 17 35 27 27 Greatest Overweight (x) 4 | . . 1 4 . 1 . . . . 1 3 Average Overweight (x) . | . . . . . . . . . . . . Largest Inventory Capacity 8 | 8 8 8 8 8 5 5 5 5 5 5 5 Average Capacity 6 | 7 8 8 8 5 5 5 5 5 5 5 5 Most Carried 8 | 6 8 8 8 8 5 5 5 5 5 5 5 Average Carried 5 | 4 7 7 7 5 4 4 4 3 4 4 4 Final Capacity 8 | 8 8 8 8 5 5 5 5 5 5 5 5 Final Carried 8 | 6 8 8 8 5 5 5 3 5 5 5 5 Class Distribution -------------------- 55% | Mutant 19% | Scavenger-Mutant 9% | Sprinter 6% | Scavenger-Sprinter 4% | Hacker-Mutant 3% | Derelict-Sprinter Dominant Class ---------------- Mutant | -10/Materials Mutant | -9/Materials Scavenger-Mutant | -8/Materials Mutant | -7/Factory Mutant | -7/DSF Sprinter | -6/Factory Sprinter | -5/Factory Mutant | -5/Upper Caves Mutant | -5/Upper Caves Mutant | -5/Warlord Mutant | -4/Proximity Caves Resources | -11 -10 -9 -8 -7 -7 -6 -5 -5 -5 -5 -4 ----------- Run | Yrd Mat Mat Mat Fac DSF Fac Fac Upp Upp War Pro Matter Collected 1977 | 199 178 343 487 . 7 59 132 283 194 90 5 Remotely . | . . . . . . . . . . . . Salvage Created 2068 | . 241 365 1062 . . 119 . 115 141 . 25 Parts 124 | . 13 16 67 . . 10 . 4 14 . . Haulers Intercepted 1 | . . . 1 . . . . . . . . Recyclers Shooed . | . . . . . . . . . . . . Parts Field Recycled . | . . . . . . . . . . . . Retrieved Matter . | . . . . . . . . . . . . Parts Self-Destructed 11 | . . . . . . . . . 11 . . Prevented 4 | . . . . . . . . . 4 . . Kills | -11 -10 -9 -8 -7 -7 -6 -5 -5 -5 -5 -4 ------- Run | Yrd Mat Mat Mat Fac DSF Fac Fac Upp Upp War Pro Combat Hostiles Destroyed 57 | . 6 9 29 . . 4 . 2 5 . 2 Melee 2 | . . . . . . . . 2 . . . Guns 31 | . 5 5 13 . . 4 . . 2 . 2 Cannons 6 | . 1 . 2 . . . . . 3 . . AOE 16 | . . 3 13 . . . . . . . . Classes Destroyed 10 | . 2 1 6 . . . . 1 . . . Worker 3 | . . . 3 . . . . . . . . Hauler 1 | . . . 1 . . . . . . . . Mechanic 1 | . . . 1 . . . . . . . . Watcher 5 | . 2 . 3 . . . . . . . . Swarmer 20 | . . . 10 . . 4 . . 4 . 2 Grunt 27 | . 6 5 14 . . . . 1 1 . . Sentry 6 | . . 4 2 . . . . . . . . Specialist 2 | . . . 2 . . . . . . . . Programmer 1 | . . . . . . . . 1 . . . Heavy 1 | . . . 1 . . . . . . . . Best Kill Streak 9 | . 3 4 9 . . 2 . 1 4 . 2 Combat Bots Only 8 | . 2 4 8 . . 2 . 1 4 . 2 Max Kills in Single Turn 4 | . 1 3 4 . . 1 . 1 1 . 1 Gunslinging . | . . . . . . . . . . . . Exploded 4 | . . 3 4 . . . . . . . . Melee 1 | . . . . . . . . 1 . . . Uniques/NPCs Destroyed . | . . . . . . . . . . . . Combat | -11 -10 -9 -8 -7 -7 -6 -5 -5 -5 -5 -4 -------- Run | Yrd Mat Mat Mat Fac DSF Fac Fac Upp Upp War Pro Hostile Shots Fired 690 | . 43 82 190 . 48 70 24 30 106 2 95 Missed 239 | . 11 28 44 . 21 26 13 10 49 1 36 Damage Taken 7688 | . 452 754 2532 . 577 772 238 364 882 82 1035 Core 2044 | . 111 102 428 . 90 302 176 94 141 43 557 Absorbed by Shields 32 | . . . . . . 32 . . . . . Ignored by Resistances 15 | . . . . . . . . . 15 . . Regen/Repaired (Parts) 23 | . . . . . . . . . . 23 . Core Remaining (%) 67 | 100 55 74 22 . 87 64 . . . . . Volleys Fired 182 | . 29 28 83 . . 18 1 . 20 . 3 Largest 2 | . 2 2 2 . . 2 1 . 2 . 1 Hottest 133 | . 55 58 133 . . 80 81 . 125 . 40 Shots Fired 264 | . 58 33 113 . . 34 1 1 21 . 3 Gun 191 | . 38 28 74 . . 34 . 1 13 . 3 Cannon 59 | . 20 4 26 . . . 1 . 8 . . Launcher 14 | . . 1 13 . . . . . . . . Special . | . . . . . . . . . . . . Kinetic 163 | . 58 32 46 . . 19 . . 8 . . Thermal 57 | . . . 54 . . . . . 3 . . Explosive 14 | . . 1 13 . . . . . . . . Electromagnetic 27 | . . . . . . 15 1 1 10 . . Entropic 3 | . . . . . . . . . . . 3 Robot Hit Streak 11 | . 11 8 9 . . 6 1 . 3 . 2 Robot Miss Streak 9 | . 4 1 6 . . 9 . . 3 . 4 Penetration Max . | . . . . . . . . . . . . Secondary Targets 1 | . . . . . . 1 . . . . . Max Gunslinging Chain 1 | . . . . . . 1 . . . . . Shots Hit Robots 176 | . 36 29 74 . . 12 1 10 9 . 5 Core Hits 110 | . 14 12 64 . . 9 . 3 6 . 2 Critical Kills . | . . . . . . . . . . . . Critical Parts Destroyed 3 | . . 1 2 . . . . . . . . Critical Strikes 8 | . 2 1 2 . . . . 2 1 . . Destroy 1 | . . . 1 . . . . . . . . Blast 2 | . 2 . . . . . . . . . . Corrupt 1 | . . . . . . . . . 1 . . Smash 2 | . . 1 1 . . . . . . . . Sever 2 | . . . . . . . . 2 . . . Melee Attacks 37 | . . 4 9 1 . . . 15 . . 8 Thermal 5 | . . . . . . . . . . . 5 Impact 14 | . . 4 9 1 . . . . . . . Slashing 16 | . . . . . . . . 13 . . 3 Piercing . | . . . . . . . . . . . . Sneak Attacks 4 | . . . 2 . . . . 2 . . . Combat Hostiles 2 | . . . . . . . . 2 . . . Follow-up Attacks . | . . . . . . . . . . . . Damage Inflicted 5089 | . 564 681 2857 . . 174 7 317 293 . 196 Guns 1912 | . 319 315 820 . . 174 . . 125 . 159 Cannons 837 | . 245 51 366 . . . 7 . 168 . . Explosions 1470 | . . 193 1277 . . . . . . . . Melee 856 | . . 114 388 . . . . 317 . . 37 Ramming 14 | . . 8 6 . . . . . . . . Kinetic 1721 | . 564 366 513 . . 110 . . 168 . . Thermal 697 | . . . 673 . . . . . 24 . . Explosive 1470 | . . 193 1277 . . . . . . . . Electromagnetic 172 | . . . . . . 64 7 . 101 . . Impact 502 | . . 114 388 . . . . . . . . Slashing 354 | . . . . . . . . 317 . . 37 Piercing . | . . . . . . . . . . . . Entropic 159 | . . . . . . . . . . . 159 Highest Corruption 4 | . . . . . . 1 3 4 4 4 2 Average Corruption 2 | . . . . . . 1 2 3 4 4 1 Corruption Purged . | . . . . . . . . . . . . Corruption Blocked . | . . . . . . . . . . . . Effects 23 | . . . . . . 2 1 11 7 1 1 Message Errors 4 | . . . . . . . . 3 1 . . Matter Fused 2 | . . . . . . . . . 2 . . Heat Flow Errors 3 | . . . . . . . . 3 . . . Energy Discharges 4 | . . . . . . . . 1 3 . . Parts Rejected 2 | . . . . . . . . . 1 . 1 Data Loss (minor) 2 | . . . . . . . . 1 . 1 . Data Loss (major) 3 | . . . . . . 1 1 1 . . . Misfires 2 | . . . . . . 1 . 1 . . . Alerts 1 | . . . . . . . . 1 . . . Overload Shots . | . . . . . . . . . . . . Overflow Damage 240 | . . 29 211 . . . . . . . . Projectiles . | . . . . . . . . . . . . Explosions 30 | . . . 30 . . . . . . . . Melee 210 | . . 29 181 . . . . . . . . Knockbacks 7 | . 4 . 3 . . . . . . . . Impact 3 | . . . 3 . . . . . . . . Kinetic 4 | . 4 . . . . . . . . . . Secondary . | . . . . . . . . . . . . Self-Inflicted Damage 134 | . . . 134 . . . . . . . . Shots 4 | . . . 4 . . . . . . . . Rammed 1 | . . . 1 . . . . . . . . Targets Rammed 4 | . . 3 1 . . . . . . . . Kicked 3 | . . 3 . . . . . . . . . Crushed . | . . . . . . . . . . . . Highest Temperature 580 | . 46 33 580 . . 218 6 241 152 206 28 Average Temperature 107 | . 26 12 177 . . 97 4 96 46 51 14 Received Heat Transfer 1941 | . 258 366 981 . 99 9 36 45 117 . 30 Effects 21 | . . . 21 . . . . . . . . Shutdowns 3 | . . . 3 . . . . . . . . Interference 3 | . . . 3 . . . . . . . . Matter Decay 2 | . . . 2 . . . . . . . . Damage (minor) 2 | . . . 2 . . . . . . . . Damage (major) 10 | . . . 10 . . . . . . . . Damage (core) 1 | . . . 1 . . . . . . . . Siege Activations . | . . . . . . . . . . . . Robots Corrupted 3 | . . 1 2 . . . . . . . . Combat Hostiles 2 | . . 1 1 . . . . . . . . Parts Fried 7 | . . . 7 . . . . . . . . Impact Corruptions 6 | . . 1 5 . . . . . . . . Robots Melted . | . . . . . . . . . . . . Combat Hostiles . | . . . . . . . . . . . . Parts Melted 4 | . . . 4 . . . . . . . . Heat Transferred 1443 | . . . 1406 . . . . . 37 . . Parts Sabotaged . | . . . . . . . . . . . . Parts Stolen . | . . . . . . . . . . . . Parts Stripped . | . . . . . . . . . . . . Power Chain Reactions . | . . . . . . . . . . . . Alert | -11 -10 -9 -8 -7 -7 -6 -5 -5 -5 -5 -4 ------- Run | Yrd Mat Mat Mat Fac DSF Fac Fac Upp Upp War Pro Peak Influence 420 | . 244 321 420 192 134 191 118 . . . . Initial 191 | . . 18 50 191 134 44 93 . . . . Average 171 | . 109 171 264 191 104 87 95 . . . . Maximum Alert Level 2 | . 1 1 2 . . . . . . . . Low Security (%) 58 | 100 82 44 10 100 100 100 100 . . . . Level 1 40 | . 17 55 85 . . . . . . . . Level 2 1 | . . . 4 . . . . . . . . Level 3 . | . . . . . . . . . . . . Level 4 . | . . . . . . . . . . . . Level 5 . | . . . . . . . . . . . . High Security . | . . . . . . . . . . . . Max Security . | . . . . . . . . . . . . Squads Dispatched 11 | . . 1 6 . . 3 . . . . 1 Investigation . | . . . . . . . . . . . . Extermination . | . . . . . . . . . . . . Reinforcement 9 | . . 1 5 . . 3 . . . . . Assault 1 | . . . . . . . . . . . 1 Garrison 1 | . . . 1 . . . . . . . . Intercept . | . . . . . . . . . . . . Searches Triggered . | . . . . . . . . . . . . Construction Impeded . | . . . . . . . . . . . . Haulers Reinforced . | . . . . . . . . . . . . Active Scanning Responses . | . . . . . . . . . . . . Cargo Convoy Interrupts . | . . . . . . . . . . . . Stealth | -11 -10 -9 -8 -7 -7 -6 -5 -5 -5 -5 -4 --------- Run | Yrd Mat Mat Mat Fac DSF Fac Fac Upp Upp War Pro Distress Signals 4 | . 1 1 1 . . . . . . 1 . Communications Jammed 13 | . . . 11 . . . . . . . 2 Distress Signals 11 | . . . 11 . . . . . . . . Times Spotted 151 | . 10 12 41 . 3 19 9 3 34 2 18 Peak Tracking Total 13 | . 3 4 11 . 3 7 9 2 11 2 13 Tactical Retreats 17 | . 1 . 1 . . 5 1 . 7 . 2 Traps | -11 -10 -9 -8 -7 -7 -6 -5 -5 -5 -5 -4 ------- Run | Yrd Mat Mat Mat Fac DSF Fac Fac Upp Upp War Pro Traps Triggered 4 | . . . . . . 2 1 . . 1 . Indirectly . | . . . . . . . . . . . . Trap Hack Attempts . | . . . . . . . . . . . . Triggered . | . . . . . . . . . . . . Disarmed . | . . . . . . . . . . . . Reprogrammed . | . . . . . . . . . . . . Reused . | . . . . . . . . . . . . Traps Extracted . | . . . . . . . . . . . . Installed 1 | . . . . . . . . . 1 . . Triggered 6 | . . . . . . . . 3 . 3 . Most Traps Carried 2 | . . . . . . . . 2 2 . . Machines | -11 -10 -9 -8 -7 -7 -6 -5 -5 -5 -5 -4 ---------- Run | Yrd Mat Mat Mat Fac DSF Fac Fac Upp Upp War Pro Machines Disabled 6 | . 1 . 4 . . . . . 1 . . Max in Single Turn 1 | . 1 . 1 . . . . . 1 . . Machines Repaired . | . . . . . . . . . . . . Machines Dismantled . | . . . . . . . . . . . . Machines Sabotaged . | . . . . . . . . . . . . Overloaded Fab Kills . | . . . . . . . . . . . . Hacking | -11 -10 -9 -8 -7 -7 -6 -5 -5 -5 -5 -4 --------- Run | Yrd Mat Mat Mat Fac DSF Fac Fac Upp Upp War Pro Machines Accessed 27 | . 3 1 2 3 . 3 3 . 1 11 . Terminals 13 | . 3 1 2 2 . 3 1 . 1 . . Fabricators 1 | . . . . . . . 1 . . . . Repair Stations . | . . . . . . . . . . . . Recycling Units 2 | . . . . 1 . . 1 . . . . Scanalyzers . | . . . . . . . . . . . . Garrison Access . | . . . . . . . . . . . . Total Hacks 44 | . 3 2 2 3 . 6 8 . 5 15 . Successful 29 | . 2 1 1 1 . 2 2 . 5 15 . Failed 15 | . 1 1 1 2 . 4 6 . . . . Catastrophic 4 | . 1 . . 1 . . 2 . . . . Database Lockouts . | . . . . . . . . . . . . Manual 2 | . . . 2 . . . . . . . . Terminals 21 | . 3 2 2 2 . 6 1 . 5 . . Fabricators 4 | . . . . . . . 4 . . . . Repair Stations . | . . . . . . . . . . . . Recycling Units 4 | . . . . 1 . . 3 . . . . Scanalyzers . | . . . . . . . . . . . . Garrison Access . | . . . . . . . . . . . . Terminal Hacks 28 | . 2 1 1 1 . 2 1 . 5 15 . Record 19 | . . 1 . . . . . . 5 13 . Open Door 2 | . . . . . . . . . . 2 . Open DSF 1 | . . . . 1 . . . . . . . Emergency Access Points 2 | . 2 . . . . . . . . . . Alert Level 1 | . . . . . . . 1 . . . . Unreport Threat 2 | . . . 1 . . 1 . . . . . Locate Traps 1 | . . . . . . 1 . . . . . Fabricator Hacks 1 | . . . . . . . 1 . . . . Build 1 | . . . . . . . 1 . . . . Repair Station Hacks . | . . . . . . . . . . . . Recycling Unit Hacks . | . . . . . . . . . . . . Scanalyzer . | . . . . . . . . . . . . Garrison Access Hacks . | . . . . . . . . . . . . Unauthorized Hacks . | . . . . . . . . . . . . Terminals . | . . . . . . . . . . . . Fabricators . | . . . . . . . . . . . . Repair Stations . | . . . . . . . . . . . . Recycling Units . | . . . . . . . . . . . . Scanalyzers . | . . . . . . . . . . . . Garrison Access . | . . . . . . . . . . . . Data Cores Recovered . | . . . . . . . . . . . . Used . | . . . . . . . . . . . . Hacking Detections 4 | . 1 . . 1 . 1 1 . . . . Full Trace Events . | . . . . . . . . . . . . Feedback Events . | . . . . . . . . . . . . Feedback Blocked . | . . . . . . . . . . . . Robot Schematics Acquired . | . . . . . . . . . . . . Robots Built . | . . . . . . . . . . . . Authchips . | . . . . . . . . . . . . Time . | . . . . . . . . . . . . Total Robot Build Rating . | . . . . . . . . . . . . Part Schematics Acquired . | . . . . . . . . . . . . Parts Built 1 | . . . . . . . 1 . . . . Authchips . | . . . . . . . . . . . . Time 128 | . . . . . . . 128 . . . . Total Part Build Rating 8 | . . . . . . . 8 . . . . Parts Repaired . | . . . . . . . . . . . . Time . | . . . . . . . . . . . . Parts Recycled . | . . . . . . . . . . . . Recycled Matter . | . . . . . . . . . . . . Retrieved Matter . | . . . . . . . . . . . . Retrieved Components . | . . . . . . . . . . . . Parts Scanalyzed . | . . . . . . . . . . . . Part Schematics Acquired . | . . . . . . . . . . . . Parts Damaged . | . . . . . . . . . . . . Bothacking | -11 -10 -9 -8 -7 -7 -6 -5 -5 -5 -5 -4 ------------ Run | Yrd Mat Mat Mat Fac DSF Fac Fac Upp Upp War Pro Used RIF Installer . | . . . . . . . . . . . . Robots Hacked . | . . . . . . . . . . . . Non-combat . | . . . . . . . . . . . . Combat . | . . . . . . . . . . . . Robot Hacks Applied . | . . . . . . . . . . . . Relay Couplers Released . | . . . . . . . . . . . . Fabnet Peak Effective % . | . . . . . . . . . . . . Robots Rewired 1 | . . . . . . . . 1 . . . Allies Hacked . | . . . . . . . . . . . . Hacks Repelled . | . . . . . . . . . . . . Allies | -11 -10 -9 -8 -7 -7 -6 -5 -5 -5 -5 -4 -------- Run | Yrd Mat Mat Mat Fac DSF Fac Fac Upp Upp War Pro Total Allies 1 | . . . . . . . . 1 . . . Largest Group 1 | . . . . . . . . 1 1 . . Highest-Rated Group 85 | . . . . . . . . 85 85 . . Highest-Rated Ally 85 | . . . . . . . . 85 85 . . Total Orders . | . . . . . . . . . . . . Ally Attacks 10 | . . . . . . . . . 10 . . Total Damage 507 | . . . . . . . . . 507 . . Kills 5 | . . . . . . . . 1 4 . . Allies Corrupted . | . . . . . . . . . . . . Allies Melted . | . . . . . . . . . . . . Intel | -11 -10 -9 -8 -7 -7 -6 -5 -5 -5 -5 -4 ------- Run | Yrd Mat Mat Mat Fac DSF Fac Fac Upp Upp War Pro Robot Analysis Total . | . . . . . . . . . . . . Derelict Logs Recovered 3 | . . . . . . . . 2 1 . . Drone Launches . | . . . . . . . . . . . . Drone Recoveries . | . . . . . . . . . . . . Exploration | -11 -10 -9 -8 -7 -7 -6 -5 -5 -5 -5 -4 ------------- Run | Yrd Mat Mat Mat Fac DSF Fac Fac Upp Upp War Pro Turns Passed 3876 | 85 447 469 845 255 52 312 145 511 372 255 128 Spaces Moved 5209 | 82 284 201 435 290 63 616 418 916 867 737 300 Core 37 | 15 . . 2 . . . . . . . 20 Treads 367 | . 127 62 178 . . . . . . . . Legs 280 | . . 139 141 . . . . . . . . Wheels 224 | 67 157 . . . . . . . . . . Hover 421 | . . . 114 290 17 . . . . . . Flight 3880 | . . . . . 46 616 418 916 867 737 280 Fastest Speed 20 | 50 90 160 62 62 52 23 29 29 20 24 24 Average Speed 56 | 82 121 180 125 80 67 37 31 41 34 32 30 Slowest Speed 250 | 90 160 190 250 82 146 52 32 44 44 109 200 Overloaded Moves . | . . . . . . . . . . . . Propulsion Burnouts . | . . . . . . . . . . . . Robots Hopped 19 | . . . . . . 8 1 4 2 4 . Cave-ins Triggered . | . . . . . . . . . . . . Exploration Rate (%) 47 | 4 53 21 43 10 84 19 12 87 88 93 61 Regions Visited 11 Branch Regions 4 Pre-discovered Areas 1 | . . . . . . . . . 1 . . Known Exits Taken 1 | . . . . 1 . . . . . . . Unknown Exits Taken 9 | 1 1 1 1 . . 1 1 1 1 1 . Scrap Searched 5 | . . . . . . . . 1 3 . 1 Spaces Dug 1 | . . . . 1 . . . . . . . Terrain Destroyed 90 | . . 13 76 1 . . . . . . . Melee 1 | . . . . 1 . . . . . . . Projectile . | . . . . . . . . . . . . AOE 89 | . . 13 76 . . . . . . . . Terrain Rammed . | . . . . . . . . . . . . Walls Destroyed . | . . . . . . . . . . . . Machines Disabled . | . . . . . . . . . . . . Actions | -11 -10 -9 -8 -7 -7 -6 -5 -5 -5 -5 -4 --------- Run | Yrd Mat Mat Mat Fac DSF Fac Fac Upp Upp War Pro Total 5782 | 99 329 269 607 311 71 662 427 1025 913 750 319 Wait 117 | . . 8 20 . . 1 3 82 3 . . Move 5163 | 81 283 200 434 289 62 599 415 908 862 730 300 Hop 16 | . . . . . . 8 1 3 2 2 . Pick Up 66 | 12 6 7 15 3 2 6 1 7 3 2 2 Fast Attach 49 | . 2 3 11 2 2 6 1 3 13 4 2 Attach 45 | 6 1 4 6 4 3 3 4 6 2 4 2 Detach 11 | . . . . 2 1 1 1 1 1 3 1 Swap 30 | . 3 5 13 4 . 2 . . 1 1 1 Drop 51 | . 5 7 15 6 1 8 . . 5 4 . Fire 182 | . 29 28 83 . . 18 1 . 20 . 3 Melee 37 | . . 4 9 1 . . . 15 . . 8 Ram . | . . . . . . . . . . . . Kick 3 | . . 3 . . . . . . . . . Crush 1 | . . . 1 . . . . . . . . Escape Stasis 10 | . . . . . . 10 . . . . . Rewire . | . . . . . . . . . . . . Trap 1 | . . . . . . . . . 1 . . Miscellaneous . | . . . . . . . . . . . . Route ------- -11/Scrapyard -10/Materials (discovered 2 exits: *Mat / [*Min]) -9/Materials -8/Materials -7/Factory -7/DSF -6/Factory -5/Factory -5/Upper Caves -5/Upper Caves (discovered 2 exits: [*Fac] / *War) -5/Warlord -4/Proximity Caves (discovered 1 exit: [*Fac]) History --------- Turn | Location | Event 12 | -11/Scrapyard | Discovered new exit (range 15) 86 | -11/Scrapyard | Entered Materials 318 | -10/Materials | Build established: Mutant 416 | -10/Materials | Discovered new exit (range 15) 509 | -10/Materials | Discovered new exit (range 16) 533 | -10/Materials | Entered another Materials area 533 | -9/Materials | Evolved 2 slots: Propulsion x2 937 | -9/Materials | Lost 4 parts (1p3n) 967 | -9/Materials | Discovered new exit (range 14) 1002 | -9/Materials | Entered another Materials area 1002 | -8/Materials | Evolved 2 slots: Utility x2 1228 | -8/Materials | Build established: Scavenger-Mutant 1304 | -8/Materials | Lost 4 parts (3n1u) 1494 | -8/Materials | Core integrity fell below 50% 1539 | -8/Materials | Lost 5 parts (2n2u1w) 1803 | -8/Materials | Garrison activated, responded to threat 1823 | -8/Materials | Discovered new exit (range 18) 1839 | -8/Materials | Destroyed 8 combat bots 1847 | -8/Materials | Entered Factory 1847 | -7/Factory | Evolved 2 slots: Power x1, Propulsion x1 2006 | -7/Factory | Build established: Mutant 2102 | -7/Factory | Identified exit to DSF 2102 | -7/Factory | Entered DSF 2137 | -7/DSF | Additional patrols routed to DSF 2143 | -7/DSF | Discovered new exit (range 14) 2154 | -7/DSF | Entered Factory 2154 | -6/Factory | Evolved 2 slots: Utility x1, Weapon x1 2168 | -6/Factory | Lost 5 parts (2n2u1w) 2388 | -6/Factory | Spotted B-75 Beast 2394 | -6/Factory | Lost 3 parts (2u1w) 2457 | -6/Factory | Discovered new exit (range 15) 2466 | -6/Factory | Entered another Factory area 2466 | -5/Factory | Evolved 2 slots: Propulsion x1, Utility x1 2599 | -5/Factory | Fabricated Com. HERF Cannon? 2608 | -5/Factory | Discovered new exit (range 12) 2611 | -5/Factory | Entered Upper Caves 2622 | -5/Upper Caves | Spotted B-75 Beast 2627 | -5/Upper Caves | Build established: Sprinter 2643 | -5/Upper Caves | Learned 4 Factory zone layouts 2687 | -5/Upper Caves | Rewired B-75 Beast 2756 | -5/Upper Caves | Learned Factory interactive machine intel 2914 | -5/Upper Caves | Lost 3 parts (2p1u) 2980 | -5/Upper Caves | Build established: Mutant 3051 | -5/Upper Caves | Discovered new exit (range 5) 3122 | -5/Upper Caves | Entered another Upper Caves area 3122 | -5/Upper Caves | Accompanied by 1 ally 3138 | -5/Upper Caves | Discovered new exit (range 6) 3287 | -5/Upper Caves | Learned Extension emergency access door positions 3287 | -5/Upper Caves | Learned Factory stockpile data 3304 | -5/Upper Caves | Attracted the attention of an 0b10 base 3373 | -5/Upper Caves | Spotted B-75 Beast 3401 | -5/Upper Caves | Found DCF Scrap (14 items) 3441 | -5/Upper Caves | Learned Factory interactive machine intel 3458 | -5/Upper Caves | Discovered new exit (range 15) 3461 | -5/Upper Caves | Lost 8 parts (1p3n2u2w) 3494 | -5/Upper Caves | Entered Warlord 3509 | -5/Warlord | System corruption cleaned by Quarantine Array 3531 | -5/Warlord | Met Warlord 3543 | -5/Warlord | Warlord's base attacked by MAIN.C 3562 | -5/Warlord | Learned Testing emergency access door positions 3562 | -5/Warlord | Learned 4 Research zone layouts 3562 | -5/Warlord | Learned 4 Testing zone layouts 3563 | -5/Warlord | Learned Armory security intel 3563 | -5/Warlord | Learned Quarantine security intel 3563 | -5/Warlord | Learned Factory garrison access intel 3675 | -5/Warlord | Found Prototype Energy Gun 3676 | -5/Warlord | Identified Vortex Rifle 3743 | -5/Warlord | Opened side exit 3748 | -5/Warlord | Discovered new exit (range 9) 3749 | -5/Warlord | Entered Proximity Caves 3753 | -4/Proximity Caves | Attracted the attention of an 0b10 outpost 3794 | -4/Proximity Caves | Attracted the attention of an 0b10 checkpoint 3807 | -4/Proximity Caves | Spotter reported a threat 3811 | -4/Proximity Caves | Core integrity fell below 50% 3812 | -4/Proximity Caves | Spotter reported a threat 3860 | -4/Proximity Caves | Core integrity fell below 20% 3865 | -4/Proximity Caves | Discovered new exit (range 11) 3877 | -4/Proximity Caves | Destroyed by P-70 Sage with High-powered Shock Rifle Last Messages --------------- 03839_ M-36 Artificer unfolds itself. 03839_ Imp. VTOL Module destroyed. 03848_ Cesium-ion Thruster destroyed. 03850_ Imp. System Shield destroyed. 03850_ Imp. Transmission Jammer destroyed. 03853_ S-27 Virus destroyed. 03859_ Vortex Rifle destroyed. 03862_ Power Sword destroyed. 03865_ EXIT=FOUND 03866_ Searching scrap... 03866_ Found Lance. 03866_ Found Imp. Power Shielding. 03866_ Found Mak. Hammer. 03866_ Found 42 Matter. 03867_ Acquired Lance. 03868_ P-70 Sage resets S-27 Virus, system corruption cleaned. 03869_ Acquired Imp. Power Shielding. 03871_ Acquired Mak. Hammer. 03872_ Adv. Visual Processing Unit destroyed. 03876_ Adv. Heat Sink destroyed. Map ----- +----------------------------------------------------+ | ?????????????????????????????????????????????? | | ?????????????????????????????????????????????? | | ?????????????????????????????????????????????? | | ?????????????????????????????????????????????? | | ?????????????????????????????????????????????? | | ?????????????????????????????????????????????? | | ?????????????????????????????????????????????? | | ?????????????????????????????????????????????? | | ?????????????????????????????????????????????? | | ?????????????????????????????????????????????? | | ?????????????????????????????????????????????? | | ?????????????????????????????????????????????? | | ????????????????####?######??????????????????? | | ?????????####??## ### ##?????????????????? | | ????????## ### #?????????????????? | | ???????## #?????????????????? | | ???????# % s #?????????????????? | | #??????#### ## % ##?????????????????? | | #????????## ### #ps#??????????????????? | | #???????## #?## #### #??????????????????? | | ???????# #??# #??# #??????????????????? | | ???????# #??###??# #??????????????????? | | ???????## ##??????# #??????????????????? | | #???????# ##?????# #??????????????????? | | ##?????## #?????# #??????????????????? | | ####?## #?????# @#??????????????????? | | ### #?????# #??????????????????? | | ?# ## #?????# ??????????????????? | | ## #????? < ??????????????????? | | ## #???? #?????????????????? | | ### ##???## #?????????????????? | | ## ######?????## #?????????????????? | | # ## #??????????# #?????????????????? | | ## ### #????????? #?????????????????? | | ## ##### #????????? #?????????????????? | | ##?# ##?????????# #?????????????????? | | #??##??????????## #?????????????????? | | #???????????????? #?????????????????? | | #???????????????? ??????????????????? | | ## ## "#???????????????? ??????????????????? | | ####?#"%" ?????????????? ??????????????????? | | #?????#" ##?????????????????????????????????? | | #?????? #??????????????????????????????????? | | #?????? #??????????????????????????????????? | | #??????? ##??????????????????????????????????? | | ???????? #???????????????????????????????????? | | ????????##???????????????????????????????????? | | ?????????????????????????????????????????????? | | ?????????????????????????????????????????????? | | ?????????????????????????????????????????????? | +----------------------------------------------------+ Best States ------------- Heat Dissipation 59 Energy Generation 33 Energy Capacity 730 Matter Stores 300 Matter Capacity 300 Sight Range 20 Terrain Scan Density 10 Jamming Range 14 Power Amplification 20 Armor Coverage 225 Resistance: TH 15 Power Shielding 66 Evasion (%) 65 Target Analysis 6 Armor Integrity Analysis 30 Recoil Reduction 4 Defensive Hacking 24 Item Schematics ----------------- None Robot Schematics ------------------ None Fabricated ------------ Com. HERF Cannon | x1 | -5/Factory | Preloaded Alien Tech Used ----------------- None Achievements -------------- None Challenges ------------ None Game ------ Seed MatterNovaPurifier Manual? 0 Play Time 01:27:24 Cumulative 148.9 hours Start 2024.09.04 @ 00:23:11 End 2024.09.04 @ 02:38:00 Sessions 1 Manual Loads 0 Difficulty Rogue Special Mode None Game No. 209 Rogue 209 Adventurer 0 Explorer 0 Win Type - Total 0 Types 0/0/0/0/0/0/0/0/0 Lore% 32 Gallery% 59 Achievement% 40 Wizard Run 0 Options --------- Layout 0 ASCII 0 Keyboard 0 Movement Mouse Keybinds 0 Fullscreen 1 Font 24/Smallcaps Map View 76x50 Zoom Use 0% Tactical HUD 1 Map Filters NONE Filters NONE Steam 1 RUN: 5a222106-e6aa-49ec-921b-cd485e63b31c